bitfinex/quotes_SOLUSD_20251212
["timestamp","ask_amount","ask_price","bid_price","bid_amount"]
[1765556381336,7.51597143,133.05,133.03,12.29836722]
[1765556381553,7.51597143,133.05,133.02,12.29836722]
[1765556381886,17.04994492,133.06,133.03,7.56067363]
[1765556382161,17.04994492,133.06,133.04,7.56067363]
[1765556382162,8.24,133.06,133.04,7.56067363]
[1765556382365,8.24,133.08,133.05,7.56067363]
[1765556382571,75.0,133.09,133.07,7.56067363]
[1765556382809,75.0,133.11,133.08,7.56067363]
[1765556383071,91.17163006,133.13,133.09,7.56067363]
[1765556383382,15.95163006,133.13,133.09,15.07420904]
[1765556383537,15.95163006,133.13,133.09,8.25067363]
[1765556384069,4.85382784,133.12,133.09,8.25067363]
[1765556384248,4.85382784,133.12,133.07,0.69]
[1765556384452,15.95163006,133.13,133.09,7.56067363]
[1765556384646,15.95163006,133.13,133.1,7.56067363]
[1765556384970,7.71151315,133.13,133.09,8.25067363]
[1765556385578,8.80994492,133.12,133.09,7.56067363]
[1765556386081,8.80994492,133.12,133.08,7.56067363]
[1765556386255,91.59061855,133.12,133.07,7.56067363]
[1765556386453,91.59061855,133.12,133.06,8.22]
[1765556386454,8.80994492,133.1,133.06,15.78067363]
[1765556386680,8.80994492,133.1,133.06,7.56067363]
[1765556386886,8.80994492,133.08,133.05,0.69]
[1765556387064,8.80994492,133.08,133.04,7.56067363]
[1765556387065,83.80994492,133.08,133.04,7.56067363]
[1765556387266,8.80994492,133.06,133.03,7.56067363]
[1765556387474,8.24,133.07,133.04,8.25067363]
[1765556387985,8.80994492,133.06,133.01,0.69]
[1765556388185,83.80994492,133.06,133.01,0.69]
[1765556388367,91.59061855,133.06,133.0,8.22]
[1765556388564,8.80994492,133.04,133.0,7.56067363]
[1765556388982,8.80994492,133.04,133.0,8.25067363]
[1765556389157,8.80994492,133.04,132.97,40.06791045]
[1765556389158,8.80994492,133.02,132.97,8.91]
[1765556389360,8.80994492,133.02,132.97,15.77105852]
[1765556389361,7.51823171,133.01,132.97,15.77105852]
[1765556389561,7.51823171,133.01,132.97,0.69]
[1765556389562,8.80994492,133.0,132.97,0.69]
[1765556389768,8.80994492,133.0,132.96,7.56067363]
[1765556389971,21.85703612,133.0,132.95,7.56067363]
[1765556390173,8.80994492,132.98,132.94,0.69]
[1765556390381,8.80994492,132.96,132.93,7.56067363]
[1765556391060,8.80994492,132.96,132.91,8.22]
[1765556391256,8.80994492,132.96,132.9,7.52407693]
[1765556391257,8.80994492,132.94,132.9,7.52407693]
[1765556391457,8.80994492,132.94,132.92,7.56067363]
[1765556391661,8.80994492,132.95,132.93,7.56067363]
[1765556391885,75.0,132.98,132.94,8.23067363]
[1765556392093,17.04994492,132.97,132.94,8.23067363]
[1765556392587,17.04994492,132.97,132.91,8.19384054]
[1765556392789,17.04994492,132.97,132.93,7.56067363]
[1765556393416,24.57057124,132.97,132.93,7.56067363]
[1765556393980,43.3718046,132.97,132.91,0.67]
[1765556394218,56.4188958,132.97,132.92,7.56067363]
[1765556394379,63.97956943,132.97,132.92,7.56067363]
[1765556394585,63.97956943,132.97,132.92,15.7539096]
[1765556394806,56.4188958,132.97,132.93,7.56067363]
[1765556395292,37.61766244,132.97,132.93,7.56067363]
[1765556395812,21.2870912,132.97,132.95,7.56067363]
[1765556396106,21.2870912,132.97,132.94,8.23067363]
[1765556396308,21.2870912,132.97,132.95,7.56067363]
[1765556396510,21.2870912,132.97,132.94,8.23067363]
[1765556396883,8.80994492,133.01,132.96,7.56067363]
[1765556397186,24.61061855,133.01,132.96,8.23067363]
[1765556397386,45.17639376,133.01,132.96,8.23067363]
[1765556397608,7.56067363,132.99,132.94,7.52202591]
[1765556397788,7.56067363,132.99,132.95,7.56067363]
[1765556397986,174.83061855,132.98,132.93,7.56067363]
[1765556398316,174.83061855,132.98,132.92,8.19284607]
[1765556398317,8.80994492,132.96,132.92,0.67]
[1765556398483,8.80994492,132.96,132.92,8.23067363]
[1765556398805,8.80994492,132.97,132.93,7.56067363]
[1765556399004,8.80994492,132.97,132.93,8.23067363]
[1765556399486,16.33080211,132.97,132.93,15.75332124]
[1765556399686,16.33080211,132.97,132.94,7.56067363]
[1765556400082,15.76009068,132.98,132.94,7.56067363]
[1765556400291,7.5183727,133.01,132.95,0.67]
[1765556400494,75.0,133.05,133.0,7.56067363]
[1765556400693,150.0,133.05,132.95,0.95432314]
[1765556400894,75.0,133.03,132.95,0.95432314]
[1765556401191,8.24,133.02,132.97,7.56067363]
[1765556401388,7.51823171,133.01,132.96,0.67]
[1765556401586,83.80994492,133.0,132.95,7.56067363]
[1765556401786,91.37061855,133.0,132.95,8.23067363]
[1765556402014,17.04994492,133.0,132.95,8.19158294]
[1765556402203,15.75771411,133.02,132.99,7.56067363]
[1765556402383,75.0,133.01,132.97,7.56067363]
[1765556402581,0.14216157,133.05,132.96,7.5207083]
[1765556402582,75.0,133.05,132.96,7.5207083]
[1765556402807,7.513148,133.1,133.04,7.56067363]
[1765556403016,7.513148,133.1,133.02,7.56067363]
[1765556403017,7.513148,133.1,133.03,8.22]
[1765556403211,165.95265571,133.11,133.07,7.56067363]
[1765556403389,165.95265571,133.11,133.08,7.56067363]
[1765556403390,7.71265571,133.11,133.08,7.56067363]
[1765556403809,157.78067363,133.1,133.04,0.67]
[1765556404005,83.24,133.1,133.05,7.51589779]
[1765556404204,83.24,133.1,133.04,0.67]
[1765556404205,165.80067363,133.1,133.04,0.67]
[1765556404402,16.37061855,133.09,133.04,8.23067363]
[1765556404606,8.80994492,133.07,133.03,15.78067363]
[1765556404820,21.85703612,133.07,133.02,7.56067363]
[1765556405023,8.80994492,133.01,132.96,0.67]
[1765556405190,16.37061855,133.01,132.96,0.67]
[1765556405514,8.80994492,132.95,132.93,0.67]
[1765556405821,83.24,132.97,132.93,0.67]
[1765556405985,90.80067363,132.99,132.93,15.75340515]
[1765556406189,13.0470912,133.0,132.95,7.56067363]
[1765556406388,16.37061855,132.99,132.93,42.78029599]
[1765556406615,24.61061855,132.99,132.94,0.67]
[1765556406813,8.80994492,132.97,132.94,0.67]
[1765556407206,16.37061855,132.97,132.93,8.22]
[1765556407411,8.80994492,132.95,132.92,8.19317451]
[1765556407589,8.24,132.97,132.93,0.67]
[1765556407790,17.04994492,132.97,132.93,8.23067363]
[1765556408227,24.5705093,132.97,132.93,0.67]
[1765556408432,16.37061855,132.96,132.91,8.19373628]
[1765556408614,8.80994492,132.96,132.92,15.08371298]
[1765556408812,8.80994492,132.99,132.94,7.56067363]
[1765556408998,8.80994492,132.99,132.93,0.67]
[1765556409204,16.37061855,132.99,132.93,8.23067363]
[1765556409432,16.37061855,132.97,132.93,0.67]
[1765556409604,16.37061855,132.97,132.9,8.22]
[1765556409605,16.37061855,132.94,132.9,8.22]
[1765556409802,112.61799647,132.97,132.89,0.67]
[1765556409803,15.80067363,132.95,132.89,7.56067363]
[1765556410004,8.80994492,132.94,132.91,0.67]
[1765556410943,16.37061855,132.94,132.89,7.52481882]
[1765556411231,16.37061855,132.91,132.85,27.04829692]
[1765556411433,8.80994492,132.91,132.86,0.67]
[1765556411615,15.0851281,132.9,132.86,0.67]
[1765556412004,7.52445447,132.9,132.86,0.67]
[1765556412322,15.08437687,132.92,132.87,7.56067363]
[1765556412923,15.08437687,132.92,132.88,0.67]
[1765556413129,7.52370324,132.92,132.88,0.67]
[1765556414032,7.52370324,132.92,132.84,8.22]
[1765556414033,174.61061855,132.91,132.85,7.56067363]
[1765556414235,17.04994492,132.91,132.87,7.56067363]
[1765556414536,8.80994492,132.9,132.86,0.67]
[1765556414703,17.04994492,132.91,132.87,7.56067363]
[1765556414907,17.04994492,132.91,132.86,8.19660659]
[1765556415108,17.04994492,132.91,132.87,7.56067363]
[1765556415330,7.52445447,132.9,132.86,0.67]
[1765556415531,16.33439939,132.9,132.86,0.67]
[1765556416217,16.33439939,132.9,132.86,15.77647857]
[1765556416534,16.33439939,132.9,132.86,8.24992354]
[1765556416731,15.76399525,132.91,132.87,8.24992354]
[1765556416936,82.57992354,132.95,132.9,7.57992354]
[1765556417115,8.80994492,132.94,132.9,7.57992354]
[1765556417315,8.80994492,132.94,132.9,0.67]
[1765556417316,23.91225508,132.94,132.9,0.67]
[1765556417636,16.38986846,132.92,132.88,0.67]
[1765556418134,8.80994492,132.92,132.88,0.67]
[1765556418308,16.38986846,132.92,132.88,0.67]
[1765556418512,16.38986846,132.9,132.85,0.67]
[1765556418713,8.80994492,132.88,132.83,8.22]
[1765556418922,8.80994492,132.88,132.82,0.67]
[1765556418923,8.80994492,132.86,132.82,0.67]
[1765556419331,8.80994492,132.84,132.79,8.89]
[1765556419637,8.80994492,132.84,132.8,0.67]
[1765556419840,16.38986846,132.84,132.8,0.67]
[1765556420021,8.80994492,132.84,132.8,0.67]
[1765556420356,8.80994492,132.84,132.8,19.49517662]
[1765556420652,8.80994492,132.87,132.82,7.57992354]
[1765556420939,17.04994492,132.87,132.81,0.7]
[1765556421134,99.62986846,132.87,132.81,8.27992354]
[1765556421318,7.52671985,132.86,132.81,0.7]
[1765556421516,7.52671985,132.86,132.81,8.27992354]
[1765556422048,8.80994492,132.85,132.8,7.57992354]
[1765556422357,82.52671985,132.86,132.81,0.7]
[1765556422716,82.52671985,132.86,132.81,8.27992354]
[1765556422951,108.92344302,132.86,132.81,0.7]
[1765556423249,8.24,132.85,132.81,15.80932401]
[1765556423425,15.7673711,132.85,132.81,15.80932401]
[1765556423619,15.7673711,132.85,132.81,15.10932401]
[1765556424046,15.7673711,132.85,132.82,0.7]
[1765556424253,34.58558713,132.85,132.79,8.23055465]
[1765556424449,109.58558713,132.85,132.8,7.57992354]
[1765556424644,109.58558713,132.85,132.8,0.7]
[1765556424947,109.58558713,132.85,132.81,0.7]
[1765556425148,91.38986846,132.84,132.78,8.27992354]
[1765556425444,7.52841978,132.83,132.79,0.7]
[1765556425622,7.52841978,132.83,132.77,7.63174349]
[1765556425824,82.57992354,132.81,132.77,0.1]
[1765556426025,15.81992354,132.8,132.77,0.1]
[1765556426951,91.38986846,132.78,132.77,0.1]
[1765556427140,92.04994492,132.78,132.77,0.1]
[1765556427336,107.16112316,132.78,132.77,0.1]
[1765556427533,107.38112316,132.78,132.77,0.1]
[1765556427852,90.7712547,132.78,132.77,0.1]
[1765556428146,15.7712547,132.78,132.77,0.1]
[1765556429156,75.0,132.82,132.77,8.37992354]
[1765556429325,6.0632024,132.88,132.81,7.57992354]
[1765556429326,82.52836062,132.84,132.81,7.57992354]
[1765556429530,82.52836062,132.84,132.78,8.23073972]
[1765556429858,82.52656857,132.87,132.83,7.57992354]
[1765556430035,82.52656857,132.87,132.84,7.57992354]
[1765556430355,82.52656857,132.87,132.83,7.57992354]
[1765556430563,7.52656857,132.87,132.82,0.7]
[1765556430962,82.57992354,132.91,132.82,0.98432314]
[1765556431166,8.24,132.9,132.85,7.57992354]
[1765556431363,42.1555142,132.9,132.83,8.22822849]
[1765556431564,42.1555142,132.9,132.84,7.57992354]
[1765556431565,83.80994492,132.89,132.84,7.57992354]
[1765556431941,75.0,132.89,132.85,0.7]
[1765556432144,82.57992354,132.89,132.85,0.7]
[1765556432346,7.57992354,132.86,132.79,8.23055249]
[1765556432545,8.24,132.85,132.8,8.27992354]
[1765556432771,8.24,132.85,132.81,0.7]
[1765556433370,7.52785305,132.84,132.81,0.7]
[1765556434270,15.76735399,132.85,132.81,0.7]
[1765556434458,15.76735399,132.85,132.81,8.27992354]
[1765556434659,15.76735399,132.85,132.82,0.7]
[1765556435373,15.76735399,132.85,132.78,7.53122805]
[1765556435575,7.57992354,132.83,132.78,0.7]
[1765556435779,8.24,132.82,132.78,0.7]
[1765556435980,83.24,132.82,132.77,0.1]
[1765556436178,8.80994492,132.8,132.77,0.1]
[1765556436375,15.81992354,132.79,132.77,0.1]
[1765556436862,8.24,132.79,132.77,0.1]
[1765556437481,7.5312547,132.78,132.77,0.1]
[1765556438271,15.77073078,132.79,132.77,0.8]
[1765556438699,15.77073078,132.79,132.77,0.1]
[1765556438903,7.53073078,132.79,132.77,0.1]
[1765556439193,18.82111899,132.83,132.78,0.7]
[1765556439381,95.57542944,132.84,132.78,8.27992354]
[1765556439574,90.76833824,132.84,132.79,7.57992354]
[1765556439778,90.76833824,132.84,132.79,8.27992354]
[1765556439975,90.76833824,132.84,132.8,0.7]
[1765556440176,109.58797088,132.84,132.8,0.7]
[1765556440479,109.58797088,132.84,132.78,7.57992354]
[1765556440480,117.16789442,132.84,132.78,7.57992354]
[1765556440679,117.16789442,132.84,132.78,8.27992354]
[1765556440881,117.16789442,132.84,132.78,0.7]
[1765556441081,82.57992354,132.82,132.78,0.7]
[1765556441284,7.57992354,132.81,132.77,0.1]
[1765556441489,7.53068755,132.79,132.77,0.1]
[1765556442089,15.11061109,132.79,132.77,0.1]
[1765556442296,8.24,132.78,132.77,0.1]
[1765556442879,99.62986846,132.78,132.77,0.1]
[1765556443202,7.53068755,132.79,132.77,0.8]
[1765556443692,7.53027176,132.8,132.77,0.8]
[1765556444781,7.53027176,132.8,132.77,0.1]
[1765556445207,8.24,132.79,132.77,0.1]
[1765556445808,7.5312547,132.78,132.77,0.1]
[1765556447500,28.89417608,132.78,132.77,0.1]
[1765556447705,19.86423116,132.78,132.77,0.1]
[1765556447934,13.0470912,132.82,132.77,0.8]
[1765556447935,8.26,132.81,132.77,0.8]
[1765556448090,83.26,132.81,132.77,0.8]
[1765556448491,12.33297646,132.79,132.77,0.1]
[1765556448702,20.59297646,132.79,132.77,0.1]
[1765556448886,8.26,132.79,132.77,0.1]
[1765556449102,20.59297646,132.79,132.77,0.1]
[1765556449311,8.26,132.79,132.77,0.1]
[1765556449621,7.5312547,132.78,132.77,0.1]
[1765556450819,103.89417608,132.78,132.77,0.1]
[1765556451009,75.0,132.76,132.73,0.51943792]
[1765556451198,113.91236792,132.78,132.73,0.51943792]
[1765556451199,12.33297646,132.77,132.73,0.51943792]
[1765556451538,7.53295668,132.75,132.73,0.51943792]
[1765556452795,7.53295668,132.75,132.73,1.18943792]
[1765556453417,8.26,132.76,132.74,0.67]
[1765556453715,7.5312547,132.78,132.74,0.67]
[1765556453917,15.7912547,132.78,132.74,0.67]
[1765556455917,46.95937931,132.78,132.74,0.67]
[1765556456106,184.61939146,132.78,132.73,0.51943792]
[1765556456316,12.33998785,132.77,132.73,1.18943792]
[1765556456518,184.61939146,132.78,132.73,1.18943792]
[1765556456742,196.95937931,132.78,132.74,0.67]
[1765556457036,7.53238927,132.76,132.73,0.51943792]
[1765556457405,15.79238927,132.76,132.73,0.51943792]
[1765556457606,28.13237712,132.76,132.73,0.51943792]
[1765556457812,34.62336245,132.76,132.73,0.51943792]
[1765556458032,15.79238927,132.76,132.73,0.51943792]
[1765556458325,52.52593634,132.8,132.73,0.51943792]
[1765556458326,7.52955349,132.81,132.75,12.33998785]
[1765556458703,7.52955349,132.81,132.76,0.67]
[1765556459023,46.95342508,132.81,132.76,0.67]
[1765556459399,12.33998785,132.79,132.74,0.67]
[1765556459608,20.59998785,132.79,132.74,8.20329286]
[1765556460010,20.59998785,132.79,132.75,0.67]
[1765556460011,8.26,132.79,132.75,0.67]
[1765556460302,12.33998785,132.76,132.73,0.51943792]
[1765556460501,95.59998785,132.77,132.73,1.18943792]
[1765556460810,83.26,132.77,132.73,1.18943792]
[1765556461019,12.33998785,132.76,132.73,1.18943792]
[1765556461332,7.53238927,132.76,132.73,1.18943792]
[1765556461526,7.53238927,132.76,132.74,0.67]
[1765556461832,38.7033503,132.76,132.73,0.51943792]
[1765556462030,104.40993277,132.75,132.73,0.51943792]
[1765556462497,12.33998785,132.74,132.73,0.51943792]
[1765556462701,83.80994492,132.73,132.67,0.67]
[1765556462906,83.80994492,132.73,132.59,0.99999999]
[1765556462907,88.0470912,132.66,132.59,0.67]
[1765556463207,19.87933127,132.64,132.59,0.67]
[1765556463907,19.87933127,132.64,132.59,8.21189821]
[1765556464102,20.59998785,132.63,132.59,0.67]
[1765556464333,12.33998785,132.61,132.57,0.67]
[1765556464511,8.26,132.61,132.57,0.67]
[1765556464713,8.26,132.61,132.57,8.21307534]
[1765556464907,8.26,132.61,132.57,0.67]
[1765556465218,87.33998785,132.67,132.59,26.39715371]
[1765556465528,87.33998785,132.67,132.58,9.66426157]
[1765556465529,83.80994492,132.63,132.58,0.67]
[1765556465727,12.33998785,132.59,132.5,22.41572269]
[1765556465931,12.33998785,132.59,132.51,0.67]
[1765556465932,21.3070912,132.58,132.51,0.67]
[1765556466317,8.26,132.58,132.51,0.67]
[1765556466519,12.33998785,132.57,132.51,0.67]
[1765556466826,12.33998785,132.56,132.51,0.67]
[1765556467010,12.33998785,132.55,132.51,0.67]
[1765556467210,150.0,132.53,132.5,3.54912178]
[1765556467422,12.33998785,132.52,132.5,3.54912178]
[1765556467621,12.33998785,132.54,132.5,4.21912178]
[1765556467824,184.6656004,132.55,132.5,4.21912178]
[1765556468029,90.92479316,132.55,132.5,3.54912178]
[1765556468342,75.0,132.54,132.5,3.54912178]
[1765556468544,34.19702397,132.51,132.5,3.44912178]
[1765556468753,192.74134711,132.51,132.5,3.42912178]
[1765556468917,192.74134711,132.51,132.5,1e-08]
[1765556469112,200.28794736,132.51,132.5,1e-08]
[1765556469443,8.80994492,132.46,132.4,7.55283471]
[1765556469653,75.0,132.45,132.39,0.67]
[1765556469823,21.14993277,132.44,132.39,0.67]
[1765556470227,75.0,132.45,132.41,0.27]
[1765556470533,75.0,132.48,132.42,7.55170884]
[1765556470839,88.0470912,132.52,132.47,12.33998785]
[1765556471044,150.0,132.57,132.51,12.33998785]
[1765556471251,157.54327847,132.57,132.51,19.8865859]
[1765556471548,87.33998785,132.54,132.48,8.24]
[1765556471735,96.14993277,132.51,132.46,7.54890069]
[1765556471917,75.0,132.49,132.43,12.33998785]
[1765556472117,75.0,132.49,132.44,12.33998785]
[1765556472334,12.33998785,132.51,132.44,7.55026053]
[1765556472529,12.33998785,132.51,132.45,0.67]
[1765556472731,88.0470912,132.52,132.46,12.33998785]
[1765556472925,100.38707905,132.52,132.45,0.67]
[1765556473138,16.3565887,132.51,132.46,7.54944889]
[1765556473339,21.14993277,132.49,132.41,0.67]
[1765556473538,158.80994492,132.46,132.4,13.00998785]
[1765556473730,83.80994492,132.46,132.4,0.67]
[1765556474044,75.0,132.44,132.4,12.33998785]
[1765556474243,8.80994492,132.43,132.38,0.67]
[1765556474449,83.26,132.44,132.41,12.33998785]
[1765556474646,92.06994492,132.46,132.42,12.33998785]
[1765556474821,83.80994492,132.46,132.38,27.10887314]
[1765556475027,183.64707905,132.48,132.43,12.33998785]
[1765556475224,75.0,132.42,132.35,0.67]
[1765556475555,21.14993277,132.41,132.36,12.33998785]
[1765556475757,12.33998785,132.38,132.32,19.89742436]
[1765556475940,158.80994492,132.39,132.32,19.89742436]
[1765556476273,9.20994492,132.4,132.32,26.4510278]
[1765556476569,75.0,132.41,132.37,12.33998785]
[1765556476741,75.0,132.41,132.33,0.67]
[1765556476943,83.80994492,132.38,132.32,7.55743651]
[1765556477269,83.80994492,132.36,132.31,28.13791002]
[1765556477478,83.80994492,132.36,132.3,7.55855718]
[1765556477678,75.0,132.36,132.31,7.5579476]
[1765556477976,0.4,132.35,132.28,27.13910127]
[1765556478265,0.4,132.35,132.26,18.90202412]
[1765556478266,150.0,132.33,132.26,18.90202412]
[1765556478472,75.0,132.33,132.29,7.55911403]
[1765556478764,75.0,132.33,132.25,16.47137004]
[1765556478765,8.80994492,132.3,132.25,16.47137004]
[1765556479066,75.0,132.31,132.25,7.56137004]
[1765556479369,8.80994492,132.3,132.26,12.33998785]
[1765556479664,27.15303957,132.33,132.27,0.67]
[1765556479665,8.80994492,132.33,132.27,0.67]
[1765556479862,13.0470912,132.35,132.27,0.67]
[1765556480046,75.0,132.37,132.3,12.33998785]
[1765556480264,150.0,132.37,132.28,13.0470912]
[1765556480555,75.0,132.33,132.29,0.67]
[1765556481180,75.0,132.39,132.33,7.55686541]
[1765556481344,82.5537093,132.39,132.34,0.67]
[1765556481682,75.0,132.39,132.35,12.33998785]
[1765556481854,75.0,132.38,132.35,12.33998785]
[1765556482171,83.80994492,132.37,132.29,0.67]
[1765556482348,75.0,132.35,132.31,12.33998785]
[1765556482546,150.0,132.33,132.26,0.67]
[1765556482743,75.0,132.31,132.23,0.67]
[1765556482941,150.0,132.31,132.24,15.82148554]
[1765556483141,82.55962749,132.29,132.26,12.33998785]
[1765556483341,82.55962749,132.29,132.22,27.16767037]
[1765556483342,75.0,132.29,132.27,12.33998785]
[1765556483557,150.0,132.31,132.28,12.33998785]
[1765556483759,150.0,132.31,132.26,7.56083706]
[1765556483760,75.0,132.33,132.3,12.33998785]
[1765556484074,75.0,132.35,132.3,0.67]
[1765556484368,75.0,132.35,132.33,12.33998785]
[1765556484571,75.0,132.37,132.34,12.33998785]
[1765556484864,60.89676806,132.44,132.31,0.67]
[1765556484865,75.0,132.43,132.36,12.33998785]
[1765556485067,75.0,132.43,132.34,0.28432314]
[1765556485266,157.95138713,132.43,132.39,12.33998785]
[1765556485471,157.95138713,132.43,132.35,15.81572346]
[1765556485663,75.0,132.39,132.34,7.55619466]
[1765556486042,75.0,132.4,132.38,12.33998785]
[1765556486241,75.0,132.4,132.3,18.89632065]
[1765556486242,21.54993277,132.39,132.3,18.89632065]
[1765556486456,21.54993277,132.39,132.32,12.33998785]
[1765556486457,150.0,132.37,132.32,12.33998785]
[1765556486669,75.0,132.37,132.32,7.55733145]
[1765556486871,75.0,132.35,132.3,0.67]
[1765556487052,87.33998785,132.35,132.3,12.33998785]
[1765556487251,75.0,132.31,132.24,0.67]
[1765556487462,75.0,132.29,132.22,8.26]
[1765556487657,75.0,132.29,132.23,7.56213701]
[1765556487856,75.0,132.29,132.25,13.42673176]
[1765556488054,75.0,132.29,132.26,13.42673176]
[1765556488274,75.0,132.28,132.23,7.56245916]
[1765556488449,75.0,132.28,132.24,7.56187353]
[1765556488646,75.0,132.28,132.25,13.42673176]
[1765556488847,75.0,132.29,132.25,7.56130235]
[1765556489052,43.54097272,132.32,132.25,0.67]
[1765556489053,75.0,132.31,132.25,0.67]
[1765556489274,75.0,132.31,132.28,13.42673176]
[1765556489481,13.42673176,132.34,132.25,26.46502835]
[1765556489482,83.80994492,132.34,132.27,8.26]
[1765556489784,75.0,132.32,132.26,0.67]
[1765556489947,75.0,132.33,132.3,13.42673176]
[1765556490149,75.0,132.37,132.32,13.42673176]
[1765556490372,150.4,132.4,132.31,8.26]
[1765556490583,27.16118361,132.41,132.31,8.26]
[1765556490584,150.0,132.38,132.31,8.26]
[1765556490787,75.0,132.38,132.36,13.42673176]
[1765556491004,7.55344059,132.39,132.36,13.42673176]
[1765556491301,150.0,132.36,132.32,13.42673176]
[1765556491590,150.0,132.36,132.25,37.80718336]
[1765556491591,150.0,132.36,132.31,7.55796675]
[1765556491796,150.4,132.38,132.34,13.42673176]
[1765556491985,75.4,132.42,132.33,0.28432314]
[1765556492186,75.0,132.41,132.33,0.67]
[1765556492392,75.0,132.41,132.38,13.42673176]
[1765556492712,75.0,132.44,132.4,13.42673176]
[1765556492908,75.0,132.44,132.42,13.42673176]
[1765556493106,75.0,132.44,132.37,0.67]
[1765556493398,32.6978009,132.48,132.37,0.67]
[1765556493399,150.4,132.48,132.38,13.0470912]
[1765556493707,150.0,132.46,132.42,13.42673176]
[1765556494004,150.0,132.46,132.43,13.42673176]
[1765556494344,157.54872212,132.48,132.45,13.42673176]
[1765556494482,150.0,132.43,132.39,7.55330523]
[1765556494670,75.0,132.45,132.4,0.67]
[1765556494991,75.0,132.46,132.4,0.67]
[1765556494992,75.0,132.46,132.41,7.55225939]
[1765556495196,157.54939773,132.47,132.45,13.42673176]
[1765556495506,157.54939773,132.47,132.44,13.42673176]
[1765556495680,75.0,132.44,132.39,15.81306307]
[1765556495880,75.0,132.44,132.41,13.42673176]
[1765556496122,75.0,132.44,132.39,15.81306307]
[1765556496272,75.0,132.44,132.41,13.42673176]
[1765556496473,75.0,132.44,132.39,8.26]
[1765556496690,75.0,132.44,132.41,13.39558926]
[1765556496903,75.0,132.44,132.4,13.39558926]
[1765556496904,75.0,132.43,132.4,13.39558926]
[1765556497095,20.59648893,132.47,132.42,13.39558926]
[1765556497295,75.0,132.48,132.46,13.39558926]
[1765556497668,75.0,132.48,132.42,0.67]
[1765556497873,75.0,132.48,132.46,13.39558926]
[1765556498128,36.02665959,132.51,132.42,0.67]
[1765556498129,75.0,132.51,132.42,8.93]
[1765556498451,82.54675258,132.51,132.42,8.93]
[1765556498619,75.0,132.5,132.47,13.39558926]
[1765556498818,75.0,132.49,132.46,13.39558926]
[1765556499029,75.0,132.49,132.43,0.67]
[1765556499244,7.54830917,132.48,132.46,13.39558926]
[1765556499653,82.54830917,132.48,132.46,13.39558926]
[1765556500221,82.54830917,132.48,132.42,8.26]
[1765556500425,75.0,132.46,132.4,7.55285111]
[1765556500726,75.0,132.47,132.42,7.55163365]
[1765556500937,75.0,132.46,132.43,13.39558926]
[1765556501242,75.0,132.45,132.41,13.39558926]
[1765556501429,82.5507059,132.44,132.4,13.39558926]
[1765556501828,75.0,132.43,132.39,13.39558926]
[1765556502034,75.0,132.42,132.39,13.39558926]
[1765556502262,75.0,132.42,132.37,7.55454103]
[1765556502479,150.0,132.4,132.33,0.67]
[1765556502932,163.79558926,132.4,132.31,16.4880077]
[1765556503132,172.07558926,132.4,132.31,16.4880077]
[1765556503347,7.55344059,132.39,132.32,0.67]
[1765556503545,163.39558926,132.38,132.33,13.39558926]
[1765556503949,150.4,132.38,132.31,15.81798607]
[1765556504153,150.0,132.38,132.35,13.39558926]
[1765556504338,75.0,132.41,132.37,13.39558926]
[1765556504542,150.0,132.41,132.39,13.39558926]
[1765556504748,150.0,132.41,132.38,13.39558926]
[1765556504938,157.552405,132.41,132.38,13.39558926]
[1765556505140,150.0,132.39,132.31,35.38300534]
[1765556505364,7.55401117,132.38,132.32,0.67]
[1765556505588,26.43903911,132.38,132.34,13.39558926]
[1765556506062,26.43903911,132.38,132.34,11.73113643]
[1765556506242,26.83903911,132.38,132.35,11.73113643]
[1765556506447,26.83903911,132.38,132.34,11.73113643]
[1765556506642,75.0,132.36,132.33,11.73113643]
[1765556507065,75.0,132.36,132.29,0.67]
[1765556507263,7.55572346,132.35,132.3,7.55848529]
[1765556507440,75.0,132.33,132.26,8.2304571]
[1765556507639,75.0,132.33,132.29,11.73113643]
[1765556507845,75.4,132.34,132.28,7.55956521]